fUSD/lending_fUSD_20251013
["ID","MTS","AMOUNT","RATE_DAILY","PERIOD"]
[391105094,1760351438758,-156.711646,0.00015,2]
[391105095,1760351438767,-151.0,0.00015,2]
[391105096,1760351438776,-156.711646,0.00015,2]
[391105097,1760351438786,-151.0,0.00015,2]
[391105098,1760351438797,-151.0,0.00015,2]
[391105099,1760351438807,-151.0,0.00015,2]
[391105100,1760351438817,-151.0,0.00015,2]
[391105101,1760351438826,-151.0,0.00015,2]
[391105102,1760351438836,-151.0,0.00015,2]
[391105103,1760351438845,-151.0,0.00015,2]
[391105104,1760351438855,-267.091679,0.00015,2]
[391105105,1760351438864,-151.0,0.00015,2]
[391105106,1760351438874,-151.0,0.00015,2]
[391105107,1760351438885,-151.0,0.00015,2]
[391105108,1760351438894,-151.0,0.00015,2]
[391105109,1760351438904,-500.0,0.00015,2]
[391105110,1760351438913,-151.0,0.00015,2]
[391105111,1760351438923,-151.0,0.00015,2]
[391105112,1760351438936,-151.0,0.00015,2]
[391105113,1760351438946,-151.0,0.00015,2]
[391105114,1760351438959,-151.0,0.00015,2]
[391105115,1760351438971,-151.0,0.00015,2]
[391105116,1760351438980,-151.0,0.00015,2]
[391105117,1760351438991,-151.0,0.00015,2]
[391105118,1760351439001,-151.0,0.00015,2]
[391105119,1760351439012,-151.0,0.00015,2]
[391105120,1760351439022,-151.0,0.00015,2]
[391105121,1760351439031,-151.0,0.00015,2]
[391105122,1760351439042,-151.0,0.00015,2]
[391105123,1760351439053,-248.155206,0.00015,2]
[391105124,1760351439063,-151.0,0.00015,2]
[391105125,1760351439073,-151.0,0.00015,2]
[391105126,1760351439084,-151.0,0.00015,2]
[391105127,1760351439094,-151.0,0.00015,2]
[391105128,1760351439104,-151.0,0.00015,2]
[391105129,1760351439114,-189.325993,0.00015,2]
[391105130,1760351439123,-151.0,0.00015,2]
[391105131,1760351439133,-151.0,0.00015,2]
[391105132,1760351439144,-151.0,0.00015,2]
[391105133,1760351439154,-151.0,0.00015,2]
[391105134,1760351439164,-151.0,0.00015,2]
[391105135,1760351439174,-151.0,0.00015,2]
[391105136,1760351439184,-151.0,0.00015,2]
[391105137,1760351439193,-1840.43589,0.00015,2]
[391105138,1760351439203,-1840.43589,0.00015,2]
[391105139,1760351439213,-1840.43589,0.00015,2]
[391105140,1760351439223,-1840.43589,0.00015,2]
[391105142,1760351439233,-151.0,0.00015,2]
[391105143,1760351439242,-151.0,0.00015,2]
[391105144,1760351439253,-151.0,0.00015,2]
[391105146,1760351439263,-3909.117367,0.00015,2]
[391105147,1760351439273,-151.0,0.00015,2]
[391105148,1760351439283,-3909.117367,0.00015,2]
[391105149,1760351439293,-151.0,0.00015,2]
[391105150,1760351439304,-3909.117367,0.00015,2]
[391105151,1760351439314,-151.0,0.00015,2]
[391105152,1760351439324,-1913.04332278,0.00015,2]
[391105153,1760351439336,-558.51498012,0.00015,2]
[391105154,1760351439352,-490.70272024,0.00015,2]
[391105155,1760351439364,-946.85634386,0.00015,2]
[391105156,1760351439374,-151.0,0.00015,2]
[391105157,1760351439384,-151.0,0.00015,2]
[391105158,1760351439394,-160.0,0.00015,2]
[391105159,1760351439404,-151.0,0.00015,2]
[391105160,1760351439414,-666.0,0.00015013,3]
[391105161,1760351439424,-274.14365614,0.0001503,2]
[391105162,1760351439524,-1105.32678969,0.000147,2]
[391105163,1760351439534,-151.0,0.00015,2]
[391105164,1760351439543,-471.85634386,0.0001503,2]
[391105165,1760351439554,-12770.72031055,0.00015094,2]
[391105166,1760351439563,-3261.49,0.00015104,2]
[391105167,1760351439573,-3089.0,0.00015169,2]
[391105168,1760351439583,-1395.4,0.00015239,2]
[391105169,1760351439593,-500.0,0.00015274,2]
[391105170,1760351439602,-168.0,0.00015287,2]
[391105171,1760351439612,-250.0,0.00015318,2]
[391105172,1760351439622,-168.0,0.00015375,2]
[391105173,1760351439632,-168.0,0.00015413,2]
[391105174,1760351439641,-1001.37279219,0.00015481,2]
[391105175,1760351439651,-2000.0,0.000155,2]
[391105176,1760351439661,-1395.4,0.00015513,2]
[391105177,1760351439671,-1000.0,0.00015521,2]
[391105178,1760351439681,-1000.0,0.00015521,2]
[391105179,1760351439690,-1000.0,0.00015521,2]
[391105181,1760351439700,-1000.0,0.00015521,2]
[391105183,1760351439710,-1000.0,0.00015521,2]
[391105185,1760351439719,-1000.0,0.00015521,2]
[391105188,1760351439732,-1000.0,0.00015521,2]
[391105190,1760351439741,-500.0,0.00015548,2]
[391105191,1760351439751,-168.0,0.00015599,2]
[391105194,1760351439760,-495.0,0.000156,2]
[391105196,1760351439770,-958.0,0.000156,2]
[391105198,1760351439780,-300.0,0.000156,2]
[391105200,1760351439790,-568.54,0.00015649,2]
[391105202,1760351439800,-168.0,0.00015722,2]
[391105205,1760351439809,-459.19544038,0.00015727,2]
[391105207,1760351439820,-1395.4,0.00015787,2]
[391105209,1760351439830,-166.67,0.00015804,2]
[391105211,1760351439840,-500.0,0.00015822,2]
[391105213,1760351439849,-168.0,0.00015826,2]
[391105215,1760351439859,-115.34291101,0.00015847,2]
[391105217,1760351439872,-162.01387951,0.00015847,2]
[391105219,1760351439881,-160.75,0.00015859,2]
[391105220,1760351439891,-168.0,0.0001586,2]
[391105221,1760351439907,-168.0,0.00015872,2]
[391105222,1760351439928,-1838.346,0.00015876,2]
[391105223,1760351439946,-169.357,0.00015876,2]
[391105224,1760351439956,-746.0,0.00015888,2]
[391105225,1760351439966,-495.90528909,0.0001591,2]
[391105226,1760351439979,-61.68703087,0.0001591,2]
[391105227,1760351439989,-818.27158091,0.00015917,2]
[391105228,1760351439998,-168.0,0.00015924,2]
[391105229,1760351440009,-168.0,0.00015924,2]
[391105230,1760351440018,-168.0,0.00015977,2]
[391105231,1760351440028,-168.0,0.00015982,2]
[391105232,1760351440038,-391.3205289,0.00016,2]
[391105234,1760351440065,-151.0,0.00015,2]
[391105235,1760351440075,-1712.81601888,0.00016,2]
[391105236,1760351440086,-400.0,0.00016,2]
[391105237,1760351440096,-500.0,0.00016009,2]
[391105238,1760351440105,-255.0,0.00016031,2]
[391105239,1760351440115,-1395.4,0.00016061,2]
[391105240,1760351440124,-168.0,0.00016061,2]
[391105241,1760351440134,-500.0,0.00016066,2]
[391105242,1760351440146,-1500.0,0.00016068,2]
[391105243,1760351440156,-1500.0,0.00016068,2]
[391105244,1760351440166,-1500.0,0.00016068,2]
[391105245,1760351440175,-517.06723113,0.00016068,2]
[391105246,1760351442561,-275.9069811,0.000147,2]
[391105247,1760351442573,-415.415,0.000147,2]
[391105248,1760351442584,-465.58268248,0.000147,2]
[391105249,1760351442594,-129.78567752,0.00014975,2]
[391105250,1760351442609,-1136.21432248,0.00014975,2]
[391105251,1760351442618,-151.0,0.00015,2]
[391105252,1760351442627,-982.93276887,0.00016068,2]
[391105253,1760351442637,-1513.47416854,0.00016068,2]
[391105254,1760351442646,-1500.0,0.00016068,2]
[391105255,1760351442655,-1500.0,0.00016068,2]
[391105256,1760351442665,-860.15960899,0.0001607,2]
[391105257,1760351442675,-500.0,0.00016096,2]
[391105258,1760351442684,-891.07941825,0.00016106,2]
[391105259,1760351442693,-168.0,0.00016125,2]
[391105260,1760351442702,-168.0,0.00016142,2]
[391105261,1760351442712,-168.0,0.00016143,2]
[391105262,1760351442721,-500.0,0.00016147,2]
[391105263,1760351442731,-500.0,0.00016147,2]
[391105264,1760351442740,-500.0,0.00016147,2]
[391105265,1760351442751,-475.44211287,0.00016147,2]
[391105271,1760351445434,-286.206133,0.00015,2]
[391105272,1760351445444,-24.55788713,0.00016147,2]
[391105273,1760351445453,-500.0,0.00016147,2]
[391105274,1760351445463,-150.0,0.00016157,2]
[391105275,1760351445472,-339.0228995,0.00016179,2]
[391105276,1760351445482,-1425.0,0.00016184,2]
[391105277,1760351445491,-1000.0,0.00016186,2]
[391105278,1760351445500,-150.0,0.00016192,2]
[391105279,1760351445510,-5000.0010751,0.000162,5]
[391105280,1760351445519,-5300.4143308,0.00016205,2]
[391105281,1760351445529,-150.0,0.00016205,2]
[391105282,1760351445539,-168.0,0.00016209,2]
[391105283,1760351445548,-150.0,0.00016211,2]
[391105284,1760351445559,-150.0,0.00016221,2]
[391105285,1760351445569,-168.0,0.00016248,2]
[391105286,1760351445580,-150.0,0.00016259,2]
[391105287,1760351445589,-150.0,0.00016259,2]
[391105288,1760351445598,-150.0,0.00016259,2]
[391105289,1760351445608,-150.0,0.00016259,2]
[391105290,1760351445617,-150.0,0.00016259,2]
[391105291,1760351445626,-500.0,0.00016259,2]
[391105292,1760351445636,-150.0,0.00016259,2]
[391105293,1760351445645,-150.0,0.00016259,2]
[391105294,1760351445654,-500.0,0.00016259,2]
[391105295,1760351445663,-150.0,0.00016259,2]
[391105296,1760351445672,-500.0,0.00016259,2]
[391105297,1760351445682,-500.0,0.00016259,2]
[391105298,1760351445691,-150.0,0.00016259,2]
[391105299,1760351445700,-150.0,0.00016259,2]
[391105300,1760351445709,-500.0,0.00016259,2]
[391105301,1760351445719,-500.0,0.00016259,2]
[391105302,1760351445728,-150.0,0.00016259,2]
[391105303,1760351445737,-500.0,0.00016259,2]
[391105304,1760351445747,-150.0,0.00016259,2]
[391105305,1760351445756,-150.0,0.00016259,2]
[391105306,1760351445765,-500.0,0.00016259,2]
[391105307,1760351445774,-500.0,0.00016259,2]
[391105308,1760351445783,-500.0,0.00016259,2]
[391105309,1760351445792,-150.0,0.00016259,2]
[391105310,1760351445802,-500.0,0.00016259,2]
[391105311,1760351445811,-150.0,0.00016259,2]
[391105312,1760351445822,-500.0,0.00016259,2]
[391105313,1760351445831,-500.0,0.00016259,2]
[391105314,1760351445841,-1000.0,0.0001626,2]
[391105315,1760351445851,-448.09847741,0.00016262,2]
[391105316,1760351445860,-19386.94070456,0.00016263,2]
[391105317,1760351445871,-150.0,0.00016266,2]
[391105318,1760351445882,-1000.0,0.00016282,2]
[391105319,1760351445890,-500.0,0.00016283,2]
[391105320,1760351445900,-420.0,0.00016286,2]
[391105321,1760351445910,-420.0,0.00016286,2]
[391105324,1760351445921,-153.50434865,0.00016286,2]
[391105325,1760351445935,-9968.33641256,0.00016289,2]
[391105328,1760351445945,-151.0,0.00016289,2]
[391105330,1760351445955,-151.0,0.00016289,2]
[391105332,1760351445964,-3909.117367,0.00016289,2]
[391105333,1760351445975,-3909.117367,0.00016289,2]
[391105334,1760351445985,-151.0,0.00016289,2]
[391105335,1760351445997,-3909.117367,0.00016289,2]
[391105336,1760351446009,-151.0,0.00016289,2]
[391105337,1760351446020,-3909.117367,0.00016289,2]
[391105338,1760351446031,-151.0,0.00016289,2]
[391105339,1760351446041,-151.0,0.00016289,2]
[391105340,1760351446051,-151.0,0.00016289,2]
[391105341,1760351446060,-151.0,0.00016289,2]
[391105342,1760351446069,-1000.0,0.00016302,2]
[391105343,1760351446079,-200.0,0.00016304,2]
[391105344,1760351446088,-1000.0,0.00016313,2]
[391105345,1760351446097,-150.0,0.00016314,2]
[391105346,1760351446107,-150.57463183,0.00016314,2]
[391105347,1760351446116,-500.0,0.00016314,2]
[391105348,1760351446125,-500.0,0.00016314,2]
[391105349,1760351446135,-150.0,0.00016314,2]
[391105350,1760351446145,-500.0,0.00016314,2]
[391105351,1760351446154,-500.0,0.00016314,2]
[391105352,1760351446164,-500.0,0.00016314,2]
[391105353,1760351446174,-500.0,0.00016314,2]
[391105354,1760351446184,-150.0,0.00016314,2]
[391105355,1760351446193,-500.0,0.00016314,2]
[391105356,1760351446202,-150.23117453,0.00016314,2]
[391105357,1760351446212,-500.0,0.00016314,2]
[391105358,1760351446221,-500.0,0.00016314,2]
[391105359,1760351446230,-500.0,0.00016314,2]
[391105360,1760351446239,-500.0,0.00016314,2]
[391105361,1760351446249,-500.0,0.00016314,2]
[391105362,1760351446258,-500.0,0.0001632,2]
[391105363,1760351446268,-473.30429415,0.00016325,2]
[391105364,1760351446277,-278.5051,0.00016325,2]
[391105365,1760351446287,-1000.0,0.00016333,2]
[391105366,1760351446296,-334.5472959,0.00016335,2]
[391105367,1760351446306,-1395.4,0.00016335,2]
[391105368,1760351446316,-1425.0,0.00016337,2]
[391105369,1760351446325,-500.0,0.0001634,2]
[391105370,1760351446336,-1680.0,0.00016367,2]
[391105371,1760351446345,-150.0,0.00016369,2]
[391105372,1760351446356,-500.0,0.00016369,2]
[391105373,1760351446366,-500.0,0.00016369,2]
[391105374,1760351446377,-251.0,0.00016369,2]
[391105375,1760351446388,-500.0,0.00016369,2]
[391105376,1760351446399,-500.0,0.00016369,2]
[391105377,1760351446408,-500.0,0.00016369,2]
[391105378,1760351446417,-500.0,0.00016369,2]
[391105379,1760351446427,-150.0,0.00016369,2]
[391105380,1760351446436,-500.0,0.00016369,2]
[391105381,1760351446446,-500.0,0.00016369,2]
[391105382,1760351446455,-500.0,0.00016369,2]
[391105383,1760351446465,-500.0,0.00016369,2]
[391105384,1760351446475,-296.0,0.00016369,2]
[391105385,1760351446486,-500.0,0.00016369,2]
[391105386,1760351446498,-500.0,0.0001637,2]
[391105387,1760351446507,-700.0,0.0001637,2]
[391105388,1760351446517,-150.0,0.00016373,2]
[391105389,1760351446526,-1000.0,0.00016384,2]
[391105390,1760351446537,-150.0,0.00016389,2]
[391105391,1760351446547,-1000.0,0.00016399,2]
[391105392,1760351446558,-2534.04047651,0.000164,2]
[391105393,1760351446567,-1119.0,0.00016407,2]
[391105394,1760351446577,-1000.0,0.00016407,2]
[391105395,1760351446587,-500.0,0.00016419,2]
[391105396,1760351446597,-1000.0,0.00016419,2]
[391105397,1760351446608,-151.0,0.00016423,2]
[391105398,1760351446620,-156.711646,0.00016423,2]
[391105399,1760351446630,-151.0,0.00016423,2]
[391105400,1760351446639,-156.711646,0.00016423,2]
[391105401,1760351446648,-170.180736,0.00016423,2]
[391105402,1760351446657,-156.711646,0.00016423,2]
[391105403,1760351446666,-151.0,0.00016423,2]
[391105404,1760351446675,-156.711646,0.00016423,2]
[391105405,1760351446684,-151.0,0.00016423,2]
[391105406,1760351446693,-151.0,0.00016423,2]
[391105407,1760351446702,-227.746892,0.00016423,2]
[391105408,1760351446711,-151.0,0.00016423,2]
[391105409,1760351446721,-151.0,0.00016423,2]
[391105410,1760351446730,-151.0,0.00016423,2]
[391105411,1760351446740,-151.0,0.00016423,2]
[391105412,1760351446750,-151.0,0.00016423,2]
[391105413,1760351446760,-264.140287,0.00016423,2]
[391105414,1760351446770,-151.816508,0.00016423,2]
[391105415,1760351446779,-151.0,0.00016423,2]
[391105416,1760351446789,-287.227564,0.00016423,2]
[391105417,1760351446798,-151.0,0.00016423,2]
[391105418,1760351446807,-151.0,0.00016423,2]
[391105419,1760351446817,-151.0,0.00016423,2]
[391105420,1760351446827,-151.0,0.00016423,2]
[391105421,1760351446836,-151.0,0.00016423,2]
[391105422,1760351446845,-151.0,0.00016423,2]
[391105423,1760351446855,-151.0,0.00016423,2]
[391105424,1760351446865,-151.0,0.00016423,2]
[391105425,1760351446874,-151.0,0.00016423,2]
[391105426,1760351446883,-151.0,0.00016423,2]
[391105427,1760351446892,-151.0,0.00016423,2]
[391105428,1760351446906,-151.0,0.00016423,2]
[391105429,1760351446917,-151.0,0.00016423,2]
[391105430,1760351446927,-151.0,0.00016423,2]
[391105431,1760351446941,-151.0,0.00016423,2]
[391105432,1760351446952,-151.0,0.00016423,2]
[391105433,1760351446963,-151.0,0.00016423,2]
[391105434,1760351446975,-151.0,0.00016423,2]
[391105435,1760351446986,-239.569108,0.00016423,2]
[391105436,1760351446996,-1840.43589,0.00016423,2]
[391105437,1760351447008,-1840.43589,0.00016423,2]
[391105438,1760351447017,-1840.43589,0.00016423,2]
[391105439,1760351447029,-1840.43589,0.00016423,2]
[391105440,1760351447040,-151.0,0.00016423,2]
[391105441,1760351447051,-500.0,0.00016423,2]
[391105442,1760351447060,-500.0,0.00016423,2]
[391105443,1760351447069,-500.0,0.00016423,2]
[391105444,1760351447364,-500.0,0.00016423,2]
[391105445,1760351447375,-500.0,0.00016423,2]
[391105446,1760351447384,-150.0,0.00016423,2]
[391105447,1760351447393,-150.0,0.00016423,2]
[391105448,1760351447403,-500.0,0.00016423,2]
[391105449,1760351447412,-500.0,0.00016423,2]
[391105450,1760351447421,-500.0,0.00016423,2]
[391105451,1760351447430,-500.0,0.00016423,2]
[391105452,1760351447439,-218.22397976,0.00016425,2]
[391105453,1760351447448,-300.0,0.00016433,2]
[391105454,1760351447458,-151.0,0.00016435,2]
[391105455,1760351447467,-1233.0,0.00016435,2]
[391105456,1760351447476,-1233.0,0.00016435,2]
[391105457,1760351447485,-151.0,0.00016435,2]
[391105458,1760351447494,-151.0,0.00016435,2]
[391105459,1760351447504,-151.0,0.00016435,2]
[391105460,1760351447513,-151.0,0.00016435,2]
[391105461,1760351447522,-151.0,0.00016435,2]
[391105462,1760351447531,-151.0,0.00016435,2]
[391105463,1760351447540,-151.0,0.00016435,2]
[391105464,1760351447549,-151.0,0.00016435,2]
[391105465,1760351447559,-151.0,0.00016435,2]
[391105466,1760351447568,-151.0,0.00016435,2]
[391105467,1760351447577,-151.0,0.00016435,2]
[391105468,1760351447586,-1383.90261,0.00016435,2]
[391105469,1760351447596,-340.21438379,0.00016435,2]
[391105470,1760351447613,-1603.32,0.00016435,2]
[391105471,1760351447624,-5766.5,0.00016435,2]
[391105472,1760351447635,-1750.0,0.00016435,2]
[391105473,1760351447650,-52538.54885083,0.00016435,2]
[391105474,1760351447658,-189.599276,0.00016435,2]
[391105475,1760351447667,-189.599276,0.00016435,2]
[391105476,1760351447676,-189.599276,0.00016435,2]
[391105477,1760351447685,-189.599276,0.00016435,2]
[391105478,1760351447694,-261.098048,0.00016435,2]
[391105479,1760351447704,-261.098048,0.00016435,2]
[391105480,1760351447713,-261.098048,0.00016435,2]
[391105481,1760351447722,-261.098048,0.00016435,2]
[391105482,1760351447731,-284.739074,0.00016435,2]
[391105483,1760351447740,-284.739074,0.00016435,2]
[391105484,1760351447749,-284.739074,0.00016435,2]
[391105485,1760351447758,-284.739074,0.00016435,2]
[391105486,1760351447767,-151.0,0.00016435,2]
[391105487,1760351447776,-292.511358,0.00016435,2]
[391105488,1760351447785,-3909.117367,0.00016435,2]
[391105489,1760351447794,-3909.117367,0.00016435,2]
[391105490,1760351447803,-151.0,0.00016435,2]
[391105491,1760351447813,-3909.117367,0.00016435,2]
[391105492,1760351447823,-151.0,0.00016435,2]
[391105493,1760351447832,-3909.117367,0.00016435,2]
[391105494,1760351447841,-151.0,0.00016435,2]
[391105495,1760351447850,-151.0,0.00016435,2]
[391105496,1760351447859,-151.0,0.00016435,2]
[391105497,1760351447868,-296.470043,0.00016435,2]
[391105498,1760351447877,-500.0,0.00016438,2]
[391105499,1760351447886,-500.0,0.00016438,2]
[391105500,1760351447895,-500.0,0.00016438,2]
[391105501,1760351447904,-500.0,0.00016438,2]
[391105502,1760351447914,-500.0,0.00016438,2]
[391105503,1760351447924,-500.0,0.00016438,2]
[391105504,1760351447939,-249.68271761,0.00016438,2]
[391105505,1760351447948,-1387.27,0.00016438,2]
[391105506,1760351447958,-300.0,0.00016438,2]
[391105507,1760351447967,-500.0,0.00016438,2]
[391105508,1760351447978,-162.65,0.0001644,2]
[391105509,1760351447987,-166.66,0.00016442,2]
[391105510,1760351447996,-500.36994589,0.0001645,2]
[391105511,1760351448008,-160.29033587,0.0001645,2]
[391105512,1760351448017,-500.0,0.00016478,2]
[391105513,1760351448026,-500.0,0.00016478,2]
[391105514,1760351448035,-500.0,0.00016478,2]
[391105515,1760351448044,-500.0,0.00016478,2]
[391105516,1760351448053,-500.0,0.00016478,2]
[391105517,1760351448063,-500.0,0.00016478,2]
[391105518,1760351448073,-200.0,0.00016478,2]
[391105519,1760351448082,-500.0,0.00016478,2]
[391105520,1760351448092,-500.0,0.00016478,2]
[391105521,1760351448101,-500.0,0.00016493,2]
[391105522,1760351448111,-500.0,0.00016493,2]
[391105523,1760351448121,-155.0,0.00016499,2]
[391105524,1760351448130,-2000.0,0.000165,2]
[391105525,1760351448140,-161.87369915,0.00016507,2]
[391105526,1760351448149,-291.79650164,0.00016525,2]
[391105527,1760351448159,-157.27919647,0.00016533,2]
[391105528,1760351448168,-500.0,0.00016533,2]
[391105529,1760351448177,-500.0,0.00016533,2]
[391105530,1760351448187,-500.0,0.00016533,2]
[391105531,1760351448197,-500.0,0.00016533,2]
[391105532,1760351448207,-500.0,0.00016533,2]
[391105533,1760351448218,-500.0,0.00016533,2]
[391105534,1760351448227,-500.0,0.00016533,2]
[391105535,1760351448237,-500.0,0.00016548,2]
[391105536,1760351448246,-500.0,0.00016548,2]
[391105537,1760351448255,-500.0,0.00016556,2]
[391105538,1760351448265,-500.0,0.00016556,2]
[391105539,1760351448274,-500.0,0.00016557,2]
[391105540,1760351448283,-500.0,0.00016588,2]
[391105541,1760351448293,-500.0,0.00016588,2]
[391105542,1760351448302,-500.0,0.00016588,2]
[391105543,1760351448312,-325.83294016,0.00016588,2]
[391105544,1760351448322,-500.0,0.00016588,2]
[391105545,1760351448331,-355.4699638,0.000166,2]
[391105546,1760351448340,-500.0,0.00016602,2]
[391105547,1760351448350,-625.15384077,0.00016602,2]
[391105548,1760351448359,-1395.4,0.00016609,2]
[391105549,1760351448368,-500.0,0.00016614,2]
[391105550,1760351448377,-507.94715883,0.00016616,2]
[391105551,1760351448386,-500.0,0.00016616,2]
[391105552,1760351448396,-1002.44692024,0.00016616,2]
[391105553,1760351448406,-1005.83178419,0.00016616,2]
[391105554,1760351448416,-500.0,0.00016616,2]
[391105555,1760351448425,-1036.44826322,0.00016616,2]
[391105556,1760351448436,-500.0,0.00016631,2]
[391105557,1760351448446,-500.0,0.00016631,2]
[391105558,1760351448455,-500.0,0.00016631,2]
[391105559,1760351448465,-500.0,0.00016631,2]
[391105560,1760351448474,-329.38078625,0.00016631,2]
[391105561,1760351448484,-500.0,0.00016643,2]
[391105562,1760351448493,-282.0,0.00016643,2]
[391105563,1760351448502,-196.16299295,0.00016643,2]
[391105564,1760351448512,-500.0,0.00016644,2]
[391105565,1760351448521,-500.0,0.00016657,2]
[391105566,1760351448530,-151.17854789,0.00016671,2]
[391105567,1760351448539,-166.67,0.00016674,2]
[391105568,1760351448548,-1000.0,0.00016695,2]
[391105569,1760351448558,-1000.0,0.00016695,2]
[391105570,1760351448567,-1000.0,0.00016695,2]
[391105571,1760351448576,-500.0,0.00016697,2]
[391105572,1760351448585,-500.0,0.00016712,2]
[391105573,1760351448596,-163.37,0.00016712,2]
[391105574,1760351448605,-151.0,0.00016752,2]
[391105575,1760351448616,-180.277803,0.00016752,2]
[391105576,1760351448628,-151.0,0.00016752,2]
[391105577,1760351448638,-151.0,0.00016752,2]
[391105578,1760351448650,-151.0,0.00016752,2]
[391105579,1760351448659,-151.0,0.00016752,2]
[391105580,1760351448669,-151.0,0.00016752,2]
[391105581,1760351448678,-151.0,0.00016752,2]
[391105582,1760351448688,-151.0,0.00016752,2]
[391105583,1760351448699,-151.0,0.00016752,2]
[391105584,1760351448708,-1840.43589,0.00016752,2]
[391105585,1760351448718,-1840.43589,0.00016752,2]
[391105586,1760351448729,-1840.43589,0.00016752,2]
[391105587,1760351448739,-1840.43589,0.00016752,2]
[391105588,1760351448750,-151.0,0.00016752,2]
[391105589,1760351448760,-500.0,0.00016752,2]
[391105590,1760351448769,-500.0,0.00016767,2]
[391105591,1760351448778,-500.0,0.00016807,2]
[391105592,1760351448787,-500.0,0.00016822,2]
[391105593,1760351448796,-500.0,0.00016831,2]
[391105594,1760351448806,-500.0,0.00016862,2]
[391105595,1760351448816,-1000.0,0.00016868,2]
[391105596,1760351448825,-151.0,0.00016868,2]
[391105597,1760351448835,-156.711646,0.00016868,2]
[391105598,1760351448844,-151.0,0.00016868,2]
[391105599,1760351448854,-156.711646,0.00016868,2]
[391105600,1760351448863,-156.711646,0.00016868,2]
[391105601,1760351448872,-156.711646,0.00016868,2]
[391105602,1760351448881,-151.0,0.00016868,2]
[391105603,1760351448891,-151.0,0.00016868,2]
[391105604,1760351448900,-151.0,0.00016868,2]
[391105605,1760351448909,-151.0,0.00016868,2]
[391105606,1760351448918,-151.0,0.00016868,2]
[391105607,1760351448929,-151.0,0.00016868,2]
[391105608,1760351448941,-151.0,0.00016868,2]
[391105609,1760351448950,-151.0,0.00016868,2]
[391105610,1760351448958,-151.0,0.00016868,2]
[391105611,1760351448968,-151.0,0.00016868,2]
[391105612,1760351448978,-191.734246,0.00016868,2]
[391105613,1760351448988,-248.58079,0.00016868,2]
[391105614,1760351448997,-151.0,0.00016868,2]
[391105615,1760351449007,-151.0,0.00016868,2]
[391105616,1760351449018,-500.0,0.00016876,2]
[391105617,1760351449027,-1395.4,0.00016883,2]
[391105618,1760351449036,-500.0,0.00016888,2]
[391105619,1760351449045,-500.0,0.00016917,2]
[391105620,1760351449054,-500.0,0.00016918,2]
[391105621,1760351449064,-166.66,0.00016922,2]
[391105622,1760351449074,-500.0,0.00016931,2]
[391105623,1760351449083,-500.0,0.00016971,2]
[391105624,1760351449092,-572.74804889,0.00016988,2]
[391105625,1760351449101,-246.1,0.00016996,2]
[391105626,1760351449110,-14952.63679675,0.00017,2]
[391105627,1760351449119,-5499.91365204,0.00017,2]
[391105628,1760351449128,-250.0,0.00017,2]